[Event "GER-ch Youth U12W 2020"]
[Site "Willingen"]
[Date "2020.10.27"]
[Round "1.1"]
[White "Bangiev, Katharina"]
[Black "Braeutigam, Katerina"]
[Result "0-1"]
[ECO "B18"]
[WhiteElo "1539"]
[BlackElo "1744"]
[Annotator "NA"]
[PlyCount "98"]
[EventDate "2020.10.27"]
[EventType "swiss"]
[EventRounds "7"]
[EventCountry "GER"]
[SourceTitle "playchess.com"]
[Source "ChessBase"]
[SourceQuality "1"]
[TimeControl "40/5400+30:1800+30"]

1. e4 {[%emt 0:00:00]} c6 {[%emt 0:00:00]} 2. d4 {[%emt 0:00:00]} d5 {[%emt 0:00:00]} 3. Nc3 {[%emt 0:00:00]} dxe4 {[%emt 0:00:00]} 4. Nxe4 {[%emt 0:00:00]} Bf5 {[%emt 0:00:05]} 5. Nc3 {[%emt 0:00:06]} e6 {[%emt 0:01:08]} 6. Nf3 {[%emt 0:00:12]} Nf6 {[%emt 0:01:59]} 7. g3 {[%emt 0:01:16]} Nbd7 {[%emt 0:05:33]} 8. Bg2 {[%emt 0:03:00]} Be7 {[%emt 0:01:50]} 9. O-O {[%emt 0:01:57]} O-O {[%emt 0:00:44]} 10. Ne2 {[%emt 0:03:20]} Nb6 {[%emt 0:01:14]} 11. b3 {[%emt 0:04:12]} Nfd5 {[%emt 0:03:31]} 12. c4 {[%emt 0:03:02]} Nb4 {[%emt 0:13:57]} 13. Ba3 {[%emt 0:13:28]} a5 {[%emt 0:09:02]} 14. Bxb4 {[%emt 0:06:28]} axb4 {[%emt 0:02:08]} 15. Qd2 {[%emt 0:05:20]} Qc7 {[%emt 0:04:08]} 16. Ne5 {[%emt 0:06:42]} Rfd8 {[%emt 0:01:25]} 17. Qe3 {[%emt 0:06:01]} Ra3 {[%emt 0:18:52]} 18. c5 {[%emt 0:04:17]} Nd5 {[%emt 0:06:02]} 19. Bxd5 {[%emt 0:01:50]} cxd5 {[%emt 0:04:01]} 20. Qd2 {[%emt 0:05:28]} Rda8 {[%emt 0:04:01]} 21. Qxb4 {[%emt 0:05:10]} f6 {[%emt 0:11:11]} 22. Nf3 {[%emt 0:02:22]} Bg4 {[%emt 0:01:47]} 23. Kg2 {[%emt 0:02:55]} Bxf3+ {[%emt 0:03:58]} 24. Kxf3 {[%emt 0:00:13]} Rxa2 {[%emt 0:02:34]} 25. Rxa2 {[%emt 0:00:21]} Rxa2 {[%emt 0:00:06]} 26. Nc3 {[%emt 0:01:41]} Ra8 {[%emt 0:01:27]} 27. Nb5 {[%emt 0:03:13]} Qc6 {[%emt 0:01:03]} 28. Nd6 {[%emt 0:05:10]} Bxd6 {[%emt 0:00:50]} 29. cxd6 {[%emt 0:00:15]} Rd8 {[%emt 0:00:13]} 30. Qc5 {[%emt 0:02:03]} Rxd6 {[%emt 0:00:35]} 31. b4 {[%emt 0:01:43]} Qxc5 {[%emt 0:00:39]} 32. bxc5 {[%emt 0:00:37]} Rc6 {[%emt 0:01:18]} 33. Rb1 {[%emt 0:00:28]} Rc7 {[%emt 0:00:06]} 34. Rb6 {[%emt 0:00:54]} Kf7 {[%emt 0:00:09]} 35. Ke3 {[%emt 0:01:35]} Re7 {[%emt 0:01:10]} 36. f4 {[%emt 0:01:49]} Kg6 {[%emt 0:00:36]} 37. c6 {[%emt 0:01:15]} bxc6 {[%emt 0:00:04]} 38. Rxc6 {[%emt 0:00:04]} Kf5 {[%emt 0:00:52]} 39. h3 {[%emt 0:01:29]} h5 {[%emt 0:00:30]} 40. Kf3 {[%emt 0:00:53]} g5 {[%emt 0:00:37]} 41. g4+ {[%emt 0:31:08]} hxg4+ {[%emt 0:01:48]} 42. hxg4+ {[%emt 0:00:00]} Kg6 {[%emt 0:00:08]} 43. Rd6 {[%emt 0:00:00]} gxf4 {[%emt 0:05:11]} 44. Kxf4 {[%emt 0:00:00]} Kf7 {[%emt 0:10:47]} 45. Kf3 {[%emt 0:00:00]} Ra7 {[%emt 0:01:04]} 46. Kf4 {[%emt 0:00:00]} Ra4 {[%emt 0:03:25]} 47. Ke3 {[%emt 0:00:00]} Ra3+ {[%emt 0:00:08]} 48. Kf4 {[%emt 0:00:00]} Rd3 {[%emt 0:00:19]} 49. Rd7+ {[%emt 0:00:00]} Kg6 {[%emt 0:00:26]} 0-1

[Event "GER-ch Youth U12W 2020"]
[Site "Willingen"]
[Date "2020.10.27"]
[Round "1.2"]
[White "Trunz, Michelle"]
[Black "Siegel, Irene"]
[Result "1-0"]
[ECO "D60"]
[WhiteElo "1662"]
[BlackElo "1380"]
[Annotator "NA RC"]
[PlyCount "111"]
[EventDate "2020.10.27"]
[EventType "swiss"]
[EventRounds "7"]
[EventCountry "GER"]
[SourceTitle "playchess.com"]
[Source "ChessBase"]
[SourceQuality "1"]
[TimeControl "40/5400+30:1800+30"]

1. d4 {[%emt 0:00:00]} d5 {[%emt 0:00:00]} 2. c4 {[%emt 0:00:00]} e6 {[%emt 0:00:00]} 3. Nc3 {[%emt 0:00:00]} Nf6 {[%emt 0:00:25]} 4. Bg5 {[%emt 0:00:49]} Be7 {[%emt 0:00:19]} 5. e3 {[%emt 0:00:10]} O-O {[%emt 0:00:21]} 6. Nf3 {[%emt 0:00:27]} Nbd7 {[%emt 0:00:19]} 7. Bd3 {[%emt 0:00:43]} b6 {[%emt 0:01:03]} 8. O-O {[%emt 0:00:18]} Bb7 {[%emt 0:01:00]} 9. Rc1 {[%emt 0:02:43]} h6 {[%emt 0:04:23]} 10. Bh4 {[%emt 0:00:45]} Rc8 {[%emt 0:00:34]} 11. Qe2 {[%emt 0:01:39]} Re8 {[%emt 0:01:13]} 12. Rfd1 {[%emt 0:01:23]} c5 {[%emt 0:04:49]} 13. cxd5 {[%emt 0:00:32]} exd5 {[%emt 0:00:29]} 14. Bf5 {[%emt 0:09:37]} Ra8 {[%emt 0:06:12]} 15. dxc5 {[%emt 0:07:19]} bxc5 {[%emt 0:02:39]} 16. Qb5 {[%emt 0:04:41]} Nb6 {[%emt 0:03:43]} 17. Bxf6 {[%emt 0:02:35]} Bxf6 {[%emt 0:05:38]} 18. Qxc5 {[%emt 0:03:41]} Be7 {[%emt 0:16:23]} 19. Qd4 {[%emt 0:03:43]} Qb8 {[%emt 0:02:42]} 20. Nb5 {[%emt 0:02:32]} Bd8 {[%emt 0:01:18]} 21. b3 {[%emt 0:06:34]} a6 {[%emt 0:04:51]} 22. Nc3 {[%emt 0:00:27]} Bc7 {[%emt 0:03:08]} 23. Rc2 {[%emt 0:02:21]} Be5 {[%emt 0:07:05]} 24. Qxb6 {[%emt 0:02:48]} d4 {[%emt 0:04:25]} 25. exd4 {[%emt 0:01:09]} Bxf3 {[%emt 0:02:24]} 26. Qxb8 {[%emt 0:00:58]} Bxd1 {[%emt 0:01:00]} 27. Qxa8 {[%emt 0:01:35]} Rxa8 {[%emt 0:01:17]} 28. Nxd1 {[%emt 0:00:45]} Rd8 {[%emt 0:01:15]} 29. Rc8 {[%emt 0:00:43]} Rxc8 {[%emt 0:00:13]} 30. Bxc8 {[%emt 0:00:09]} Bxd4 {[%emt 0:00:09]} 31. Bxa6 {[%emt 0:00:07]} Kf8 {[%emt 0:00:38]} 32. Kf1 {[%emt 0:00:09]} Ke7 {[%emt 0:00:07]} 33. Ke2 {[%emt 0:00:09]} Kd6 {[%emt 0:00:10]} 34. Ne3 {[%emt 0:00:09]} Kc5 {[%emt 0:01:50]} 35. Bc4 {[%emt 0:00:00]} f6 {[%emt 0:00:54]} 36. Nf5 {[%emt 0:00:00]} Be5 {[%emt 0:00:20]} 37. Nxg7 {[%emt 0:00:00]} Bxh2 {[%emt 0:00:15]} 38. g3 {[%emt 0:00:00]} Kb4 {[%emt 0:01:33]} 39. Nf5 {[%emt 0:00:00]} h5 {[%emt 0:00:32]} 40. Kf1 {[%emt 0:00:00]} Ka3 {[%emt 0:00:56]} 41. Kg2 {[%emt 0:29:39]} Bxg3 {[%emt 0:30:24]} 42. Kxg3 {[%emt 0:00:30]} Kxa2 {[%emt 0:00:12]} 43. b4+ {[%emt 0:00:07]} Ka3 {[%emt 0:00:13]} 44. b5 {[%emt 0:00:10]} Kb4 {[%emt 0:00:25]} 45. b6 {[%emt 0:00:06]} Kxc4 {[%emt 0:00:27]} 46. b7 {[%emt 0:00:07]} h4+ {[%emt 0:00:43]} 47. Nxh4 {[%emt 0:00:11]} f5 {[%emt 0:00:35]} 48. b8=Q {[%emt 0:00:11]} f4+ {[%emt 0:00:20]} 49. Kxf4 {[%emt 0:00:14]} Kc3 {[%emt 0:00:08]} 50. Qe5+ {[%emt 0:00:10]} Kc4 {[%emt 0:00:25]} 51. Ke3 {[%emt 0:00:12]} Kb3 {[%emt 0:00:14]} 52. Qc5 {[%emt 0:00:08]} Kb2 {[%emt 0:00:39]} 53. Qc4 {[%emt 0:00:16]} Kb1 {[%emt 0:00:31]} 54. Qe2 {[%emt 0:00:10]} Kc1 {[%emt 0:00:31]} 55. Qa2 {[%emt 0:00:14]} Kd1 {[%emt 0:00:12]} 56. Qd2# {[%emt 0:00:06]} 1-0

[Event "GER-ch Youth U12W 2020"]
[Site "Willingen"]
[Date "2020.10.27"]
[Round "1.3"]
[White "Rodermel, Leonie"]
[Black "Peglau, Charis"]
[Result "0-1"]
[ECO "B19"]
[WhiteElo "1370"]
[BlackElo "1768"]
[Annotator "NA RC"]
[PlyCount "66"]
[EventDate "2020.10.27"]
[EventType "swiss"]
[EventRounds "7"]
[EventCountry "GER"]
[SourceTitle "playchess.com"]
[Source "ChessBase"]
[SourceQuality "1"]
[TimeControl "40/5400+30:1800+30"]

1. e4 {[%emt 0:00:00]} c6 {[%emt 0:00:00]} 2. d4 {[%emt 0:00:00]} d5 {[%emt 0:00:00]} 3. Nc3 {[%emt 0:00:04]} dxe4 {[%emt 0:00:07]} 4. Nxe4 {[%emt 0:00:23]} Bf5 {[%emt 0:00:16]} 5. Ng3 {[%emt 0:00:21]} Bg6 {[%emt 0:00:14]} 6. h4 {[%emt 0:00:25]} h6 {[%emt 0:00:19]} 7. Nf3 {[%emt 0:00:44]} Nd7 {[%emt 0:00:10]} 8. h5 {[%emt 0:00:55]} Bh7 {[%emt 0:00:04]} 9. Bd3 {[%emt 0:01:07]} Bxd3 {[%emt 0:00:09]} 10. Qxd3 {[%emt 0:00:15]} Ngf6 {[%emt 0:00:29]} 11. Bd2 {[%emt 0:03:11]} e6 {[%emt 0:01:06]} 12. Ne4 {[%emt 0:03:00]} Nxe4 {[%emt 0:00:36]} 13. Qxe4 {[%emt 0:00:10]} Nf6 {[%emt 0:00:04]} 14. Qd3 {[%emt 0:02:44]} Qc7 {[%emt 0:02:44]} 15. g3 {[%emt 0:04:17]} Bd6 {[%emt 0:02:29]} 16. O-O-O {[%emt 0:03:27]} O-O-O {[%emt 0:00:54]} 17. Qe2 {[%emt 0:16:02]} Rhe8 {[%emt 0:08:55]} 18. Ne5 {[%emt 0:07:52]} c5 {[%emt 0:17:23]} 19. Nf3 {[%emt 0:33:21]} Kb8 {[%emt 0:14:44]} 20. Rh4 {[%emt 0:08:25]} Ka8 {[%emt 0:08:00]} 21. dxc5 {[%emt 0:02:24]} Bxc5 {[%emt 0:04:51]} 22. Bc3 {[%emt 0:02:51]} Rxd1+ {[%emt 0:02:23]} 23. Kxd1 {[%emt 0:00:54]} Qb6 {[%emt 0:11:22]} 24. Ke1 {[%emt 0:02:10]} Be7 {[%emt 0:03:38]} 25. Qe5 {[%emt 0:03:46]} Nd5 {[%emt 0:02:03]} 26. Rc4 {[%emt 0:00:32]} Bf6 {[%emt 0:01:22]} 27. Qe4 {[%emt 0:01:29]} Nxc3 {[%emt 0:03:14]} 28. bxc3 {[%emt 0:00:06]} Qb1+ {[%emt 0:01:30]} 29. Ke2 {[%emt 0:00:06]} Qxa2 {[%emt 0:03:14]} 30. Ra4 {[%emt 0:01:49]} Qd5 {[%emt 0:00:24]} 31. Rxa7+ {[%emt 0:01:16]} Kxa7 {[%emt 0:00:49]} 32. Qa4+ {[%emt 0:00:10]} Kb6 {[%emt 0:00:54]} 33. Qxe8 {[%emt 0:01:39]} Qe4+ {[%emt 0:00:18]} 0-1

[Event "GER-ch Youth U12W 2020"]
[Site "Willingen"]
[Date "2020.10.27"]
[Round "1.4"]
[White "Peglau, Dora"]
[Black "Margaryan, Venera"]
[Result "1-0"]
[ECO "C10"]
[WhiteElo "1683"]
[BlackElo "1457"]
[Annotator "NA RC"]
[PlyCount "63"]
[EventDate "2020.10.27"]
[EventType "swiss"]
[EventRounds "7"]
[EventCountry "GER"]
[SourceTitle "playchess.com"]
[Source "ChessBase"]
[SourceQuality "1"]
[TimeControl "40/5400+30:1800+30"]

1. e4 {[%emt 0:00:00]} e6 {[%emt 0:00:00]} 2. d4 {[%emt 0:00:00]} d5 {[%emt 0:00:00]} 3. Nc3 {[%emt 0:00:10]} c6 {[%emt 0:00:19]} 4. Nf3 {[%emt 0:03:20]} Nd7 {[%emt 0:01:05]} 5. Bd3 {[%emt 0:06:09]} Be7 {[%emt 0:02:20]} 6. O-O {[%emt 0:00:44]} Qc7 {[%emt 0:01:20]} 7. Re1 {[%emt 0:01:50]} a6 {[%emt 0:04:53]} 8. Qe2 {[%emt 0:15:30]} dxe4 {[%emt 0:06:59]} 9. Nxe4 {[%emt 0:00:23]} Ngf6 {[%emt 0:01:26]} 10. Nxf6+ {[%emt 0:07:37]} Bxf6 {[%emt 0:06:21]} 11. Ng5 {[%emt 0:09:33]} Nb6 {[%emt 0:05:34]} 12. c3 {[%emt 0:02:43]} Nd5 {[%emt 0:06:16]} 13. Qf3 {[%emt 0:04:25]} h6 {[%emt 0:07:52]} 14. Ne4 {[%emt 0:00:42]} Be7 {[%emt 0:03:20]} 15. Qg4 {[%emt 0:07:01]} Bf8 {[%emt 0:07:16]} 16. Bc4 {[%emt 0:12:28]} Ne7 {[%emt 0:16:34]} 17. Bf4 {[%emt 0:04:38]} e5 {[%emt 0:06:55]} 18. Bxe5 {[%emt 0:00:29]} Qxe5 {[%emt 0:02:03]} 19. Qxc8+ {[%emt 0:01:06]} Rxc8 {[%emt 0:00:57]} 20. dxe5 {[%emt 0:00:11]} Nf5 {[%emt 0:02:07]} 21. Rad1 {[%emt 0:04:54]} Be7 {[%emt 0:05:53]} 22. Nd6+ {[%emt 0:01:16]} Bxd6 {[%emt 0:00:24]} 23. exd6+ {[%emt 0:00:11]} Kf8 {[%emt 0:00:44]} 24. g4 {[%emt 0:05:06]} Nh4 {[%emt 0:01:31]} 25. Re7 {[%emt 0:01:20]} f6 {[%emt 0:01:14]} 26. Rf7+ {[%emt 0:00:27]} Kg8 {[%emt 0:01:29]} 27. Rxb7+ {[%emt 0:04:17]} Kh7 {[%emt 0:00:41]} 28. Bd3+ {[%emt 0:01:01]} Kg8 {[%emt 0:00:37]} 29. Rc7 {[%emt 0:01:15]} Rxc7 {[%emt 0:01:32]} 30. dxc7 {[%emt 0:00:02]} Kf7 {[%emt 0:00:32]} 31. Bxa6 {[%emt 0:00:13]} Nf3+ {[%emt 0:01:07]} 32. Kg2 {[%emt 0:00:15]} 1-0

[Event "GER-ch Youth U12W 2020"]
[Site "Willingen"]
[Date "2020.10.27"]
[Round "1.6"]
[White "Wilmink, Anna"]
[Black "Bako, Evelin"]
[Result "1-0"]
[ECO "C24"]
[WhiteElo "1608"]
[BlackElo "1192"]
[Annotator "NA"]
[PlyCount "163"]
[EventDate "2020.10.27"]
[EventType "swiss"]
[EventRounds "7"]
[EventCountry "GER"]
[SourceTitle "playchess.com"]
[Source "ChessBase"]
[SourceQuality "1"]
[TimeControl "40/5400+30:1800+30"]

1. e4 {[%emt 0:00:00]} e5 {[%emt 0:00:00]} 2. Bc4 {[%emt 0:00:00]} Nf6 {[%emt 0:00:54]} 3. d4 {[%emt 0:00:13]} Nxe4 {[%emt 0:04:33]} 4. dxe5 {[%emt 0:00:19]} Bc5 {[%emt 0:05:40]} 5. Qd5 {[%emt 0:01:29]} Bxf2+ {[%emt 0:02:27]} 6. Kf1 {[%emt 0:00:57]} O-O {[%emt 0:09:22]} 7. Qxe4 {[%emt 0:02:45]} Bxg1 {[%emt 0:01:11]} 8. Kxg1 {[%emt 0:01:01]} c6 {[%emt 0:01:53]} 9. Be3 {[%emt 0:03:21]} d5 {[%emt 0:06:50]} 10. exd6 {[%emt 0:00:24]} Re8 {[%emt 0:00:38]} 11. Qf3 {[%emt 0:01:39]} Be6 {[%emt 0:02:22]} 12. Bxe6 {[%emt 0:00:51]} Rxe6 {[%emt 0:00:50]} 13. Nc3 {[%emt 0:00:36]} Qxd6 {[%emt 0:01:49]} 14. Rd1 {[%emt 0:01:30]} Qe7 {[%emt 0:02:26]} 15. Bf2 {[%emt 0:02:13]} Nd7 {[%emt 0:02:19]} 16. g3 {[%emt 0:03:02]} Ne5 {[%emt 0:02:28]} 17. Qg2 {[%emt 0:08:47]} Re8 {[%emt 0:07:47]} 18. Qf1 {[%emt 0:06:24]} Qg5 {[%emt 0:02:42]} 19. Qe2 {[%emt 0:09:21]} Ng4 {[%emt 0:02:54]} 20. Qd2 {[%emt 0:04:01]} Qe7 {[%emt 0:12:40]} 21. Kg2 {[%emt 0:03:32]} Rf6 {[%emt 0:04:21]} 22. Rhe1 Qf8 {[%emt 0:06:39]} 23. Bc5 {[%emt 0:16:23]} Rxe1 {[%emt 0:02:06]} 24. Rxe1 {[%emt 0:00:54]} Qc8 {[%emt 0:01:01]} 25. Rd1 {[%emt 0:03:26]} Re6 {[%emt 0:00:45]} 26. Qd8+ {[%emt 0:01:35]} Re8 {[%emt 0:00:12]} 27. Qxc8 {[%emt 0:00:25]} Rxc8 {[%emt 0:00:09]} 28. Bxa7 {[%emt 0:00:21]} c5 {[%emt 0:00:22]} 29. Nd5 {[%emt 0:01:36]} Kf8 {[%emt 0:00:51]} 30. Re1 {[%emt 0:01:21]} f6 {[%emt 0:00:36]} 31. Nf4 {[%emt 0:01:42]} Ne5 {[%emt 0:00:43]} 32. Ne6+ {[%emt 0:02:27]} Kf7 {[%emt 0:00:43]} 33. Nxc5 {[%emt 0:01:02]} Ra8 {[%emt 0:01:08]} 34. Bb6 {[%emt 0:01:37]} Nc4 {[%emt 0:00:32]} 35. Bc7 {[%emt 0:01:15]} Rc8 {[%emt 0:00:19]} 36. Ne6 {[%emt 0:03:38]} Re8 {[%emt 0:00:14]} 37. Re4 {[%emt 0:00:23]} Nxb2 {[%emt 0:01:12]} 38. Nc5 {[%emt 0:00:37]} Rc8 {[%emt 0:00:30]} 39. Bd6 {[%emt 0:00:58]} b6 {[%emt 0:00:25]} 40. Rb4 {[%emt 0:01:20]} bxc5 {[%emt 0:00:42]} 41. Rxb2 {[%emt 0:30:43]} g5 {[%emt 0:33:26]} 42. c4 {[%emt 0:06:50]} Ke6 {[%emt 0:01:13]} 43. Rd2 {[%emt 0:00:45]} Rc6 {[%emt 0:00:36]} 44. Bb8 {[%emt 0:01:51]} Rc8 {[%emt 0:02:12]} 45. Ba7 {[%emt 0:00:55]} Rc7 {[%emt 0:00:33]} 46. Bb6 {[%emt 0:00:34]} Rc6 {[%emt 0:00:13]} 47. Ba5 {[%emt 0:00:13]} Ra6 {[%emt 0:00:21]} 48. Bc3 {[%emt 0:00:11]} Ra3 {[%emt 0:00:11]} 49. Re2+ {[%emt 0:01:20]} Kf7 {[%emt 0:00:17]} 50. Be1 {[%emt 0:00:51]} Ra4 {[%emt 0:00:30]} 51. Rc2 {[%emt 0:00:16]} Ke6 {[%emt 0:00:16]} 52. Bf2 {[%emt 0:01:01]} Kd6 {[%emt 0:01:08]} 53. Kf3 {[%emt 0:01:40]} f5 {[%emt 0:00:57]} 54. h4 {[%emt 0:00:48]} h6 {[%emt 0:01:11]} 55. hxg5 {[%emt 0:02:12]} hxg5 {[%emt 0:00:11]} 56. Be3 {[%emt 0:00:40]} f4 {[%emt 0:01:26]} 57. gxf4 {[%emt 0:00:35]} gxf4 {[%emt 0:00:08]} 58. Bxf4+ {[%emt 0:00:54]} Kc6 {[%emt 0:00:13]} 59. Bc1 {[%emt 0:00:36]} Kd6 {[%emt 0:00:37]} 60. Ke4 {[%emt 0:00:20]} Kc6 {[%emt 0:00:14]} 61. a3 {[%emt 0:01:12]} Kd6 {[%emt 0:00:28]} 62. Kd3 {[%emt 0:00:44]} Kc6 {[%emt 0:00:29]} 63. Kc3 {[%emt 0:00:16]} Kd6 {[%emt 0:00:26]} 64. Kb3 {[%emt 0:00:27]} Ra5 {[%emt 0:00:18]} 65. a4 {[%emt 0:00:19]} Kc6 {[%emt 0:00:16]} 66. Bd2 {[%emt 0:00:13]} Ra6 {[%emt 0:00:13]} 67. a5 {[%emt 0:00:10]} Kd6 {[%emt 0:00:13]} 68. Ka4 {[%emt 0:00:11]} Kc6 {[%emt 0:00:07]} 69. Rc1 {[%emt 0:00:21]} Ra7 {[%emt 0:00:26]} 70. Rh1 {[%emt 0:00:33]} Rd7 {[%emt 0:00:50]} 71. Bc3 {[%emt 0:00:42]} Kb7 {[%emt 0:00:18]} 72. Kb5 {[%emt 0:00:18]} Rc7 {[%emt 0:00:17]} 73. Be5 {[%emt 0:01:06]} Rc8 {[%emt 0:01:03]} 74. Rh7+ {[%emt 0:00:19]} Ka8 {[%emt 0:00:11]} 75. Rh8 {[%emt 0:00:27]} Rxh8 {[%emt 0:00:15]} 76. Bxh8 {[%emt 0:00:07]} Kb7 {[%emt 0:00:13]} 77. Kxc5 {[%emt 0:00:09]} Ka6 {[%emt 0:00:23]} 78. Bc3 {[%emt 0:00:14]} Kb7 {[%emt 0:00:06]} 79. Kd6 {[%emt 0:00:09]} Kc8 {[%emt 0:00:08]} 80. c5 {[%emt 0:00:10]} Kb7 {[%emt 0:00:19]} 81. Kd7 {[%emt 0:00:07]} Kb8 {[%emt 0:00:12]} 82. c6 1-0

[Event "GER-ch Youth U12W 2020"]
[Site "Willingen"]
[Date "2020.10.27"]
[Round "1.7"]
[White "Hoffmann, Sophia"]
[Black "Wartenberg, Alissa"]
[Result "0-1"]
[ECO "D02"]
[WhiteElo "1345"]
[BlackElo "1463"]
[Annotator "NA RC"]
[PlyCount "52"]
[EventDate "2020.10.27"]
[EventType "swiss"]
[EventRounds "7"]
[EventCountry "GER"]
[SourceTitle "playchess.com"]
[Source "ChessBase"]
[SourceQuality "1"]
[TimeControl "40/5400+30:1800+30"]

1. d4 {[%emt 0:00:00]} d5 {[%emt 0:00:00]} 2. Nf3 {[%emt 0:00:00]} Nf6 {[%emt 0:00:00]} 3. Bf4 {[%emt 0:00:03]} e6 {[%emt 0:00:00]} 4. e3 {[%emt 0:00:22]} c5 {[%emt 0:00:09]} 5. c3 {[%emt 0:00:13]} Nc6 {[%emt 0:00:07]} 6. Nbd2 {[%emt 0:00:29]} Bd6 {[%emt 0:05:08]} 7. Bg3 {[%emt 0:00:36]} a6 {[%emt 0:13:27]} 8. Bd3 {[%emt 0:21:23]} b6 {[%emt 0:05:44]} 9. e4 {[%emt 0:15:50]} dxe4 {[%emt 0:04:57]} 10. Nxe4 {[%emt 0:07:14]} Bxg3 {[%emt 0:00:23]} 11. hxg3 {[%emt 0:01:17]} cxd4 {[%emt 0:08:26]} 12. Nxf6+ {[%emt 0:05:35]} Qxf6 {[%emt 0:01:14]} 13. Qa4 {[%emt 0:06:55]} Bd7 {[%emt 0:08:06]} 14. Be4 {[%emt 0:20:27]} b5 {[%emt 0:05:35]} 15. Qc2 {[%emt 0:05:29]} dxc3 {[%emt 0:03:01]} 16. bxc3 {[%emt 0:03:20]} Rc8 {[%emt 0:02:58]} 17. O-O-O {[%emt 0:03:06]} Nb4 {[%emt 0:19:54]} 18. Qd2 {[%emt 0:04:26]} Qxc3+ {[%emt 0:05:05]} 19. Kb1 {[%emt 0:00:47]} Qxd2 {[%emt 0:02:23]} 20. Rxd2 {[%emt 0:00:20]} Bc6 {[%emt 0:04:32]} 21. Bd3 {[%emt 0:01:37]} Nxd3 {[%emt 0:00:45]} 22. Nd4 {[%emt 0:00:53]} Be4 {[%emt 0:00:25]} 23. f3 {[%emt 0:00:07]} Nf2+ {[%emt 0:01:04]} 24. fxe4 {[%emt 0:00:06]} Nxh1 {[%emt 0:00:07]} 25. g4 {[%emt 0:01:07]} Ng3 {[%emt 0:00:27]} 26. Rd3 Nxe4 {[%emt 0:00:00]} 0-1

[Event "GER-ch Youth U12W 2020"]
[Site "Willingen"]
[Date "2020.10.27"]
[Round "1.8"]
[White "Eichhorn, Mathilda"]
[Black "Khanbekyan, Nare"]
[Result "0-1"]
[ECO "C54"]
[WhiteElo "1560"]
[BlackElo "1329"]
[Annotator "NA RC"]
[PlyCount "122"]
[EventDate "2020.10.27"]
[EventType "swiss"]
[EventRounds "7"]
[EventCountry "GER"]
[SourceTitle "playchess.com"]
[Source "ChessBase"]
[SourceQuality "1"]
[TimeControl "40/5400+30:1800+30"]

1. e4 {[%emt 0:00:00]} e5 {[%emt 0:00:00]} 2. Nf3 {[%emt 0:00:00]} Nc6 {[%emt 0:00:00]} 3. Bc4 {[%emt 0:00:00]} Bc5 {[%emt 0:00:00]} 4. c3 {[%emt 0:00:00]} Nf6 {[%emt 0:00:00]} 5. d4 {[%emt 0:00:01]} exd4 {[%emt 0:00:06]} 6. cxd4 {[%emt 0:00:05]} Bb4+ {[%emt 0:00:11]} 7. Bd2 {[%emt 0:00:08]} Bxd2+ {[%emt 0:01:33]} 8. Nbxd2 {[%emt 0:00:09]} Nxe4 {[%emt 0:02:02]} 9. Bxf7+ {[%emt 0:02:07]} Kxf7 {[%emt 0:00:56]} 10. Nxe4 {[%emt 0:02:35]} Re8 {[%emt 0:02:49]} 11. O-O {[%emt 0:00:20]} Rxe4 {[%emt 0:02:37]} 12. d5 {[%emt 0:02:34]} Ne5 {[%emt 0:03:03]} 13. d6 {[%emt 0:00:39]} Kg8 {[%emt 0:02:20]} 14. Qd5+ {[%emt 0:00:27]} Nf7 {[%emt 0:07:24]} 15. Qxe4 {[%emt 0:01:56]} Nxd6 {[%emt 0:05:22]} 16. Qd5+ {[%emt 0:01:26]} Kf8 {[%emt 0:01:26]} 17. Rfe1 {[%emt 0:01:28]} Qf6 {[%emt 0:02:14]} 18. Ng5 {[%emt 0:01:09]} Qg6 {[%emt 0:02:59]} 19. Qf3+ {[%emt 0:15:21]} Kg8 {[%emt 0:03:51]} 20. Nf7 {[%emt 0:03:59]} Qxf7 {[%emt 0:01:35]} 21. Qxf7+ {[%emt 0:00:37]} Kxf7 {[%emt 0:00:57]} 22. Re2 {[%emt 0:00:24]} b6 {[%emt 0:01:06]} 23. Rae1 {[%emt 0:01:05]} a5 {[%emt 0:03:45]} 24. Re3 {[%emt 0:03:14]} b5 {[%emt 0:01:46]} 25. b3 {[%emt 0:01:25]} g6 {[%emt 0:04:15]} 26. Rc1 {[%emt 0:01:27]} Nf5 {[%emt 0:01:14]} 27. Rf3 {[%emt 0:00:18]} Bb7 {[%emt 0:00:19]} 28. Rf4 {[%emt 0:00:15]} Rc8 {[%emt 0:01:16]} 29. g4 {[%emt 0:00:19]} Kf6 {[%emt 0:02:27]} 30. gxf5 {[%emt 0:00:30]} gxf5 {[%emt 0:00:11]} 31. Rc5 {[%emt 0:00:40]} Be4 {[%emt 0:01:42]} 32. Rxb5 {[%emt 0:02:50]} Rg8+ {[%emt 0:00:19]} 33. Kf1 {[%emt 0:00:32]} Bd3+ {[%emt 0:00:13]} 34. Ke1 {[%emt 0:00:08]} Bxb5 {[%emt 0:00:28]} 35. Rd4 {[%emt 0:00:52]} Re8+ {[%emt 0:01:30]} 36. Kd1 {[%emt 0:00:34]} Re2 {[%emt 0:00:28]} 37. a4 {[%emt 0:00:56]} Ba6 {[%emt 0:01:14]} 38. Rxd7 {[%emt 0:00:27]} Rxf2 {[%emt 0:01:01]} 39. Rxc7 {[%emt 0:00:32]} Be2+ {[%emt 0:01:35]} 40. Ke1 {[%emt 0:00:32]} Rxh2 {[%emt 0:00:05]} 41. Rc2 {[%emt 0:30:17]} Rh1+ {[%emt 0:33:36]} 42. Kxe2 {[%emt 0:00:48]} Rb1 {[%emt 0:00:17]} 43. Rc3 {[%emt 0:01:03]} Kg5 {[%emt 0:00:26]} 44. Rc5 {[%emt 0:00:31]} Rxb3 {[%emt 0:00:40]} 45. Rxa5 {[%emt 0:00:10]} Ra3 {[%emt 0:00:06]} 46. Kf2 {[%emt 0:00:33]} Kg4 {[%emt 0:00:16]} 47. Kg2 {[%emt 0:00:35]} h5 {[%emt 0:00:12]} 48. Ra8 {[%emt 0:00:13]} h4 {[%emt 0:00:27]} 49. a5 {[%emt 0:00:38]} h3+ {[%emt 0:00:23]} 50. Kh2 {[%emt 0:00:44]} Ra2+ {[%emt 0:00:10]} 51. Kh1 {[%emt 0:00:41]} Kg3 {[%emt 0:00:51]} 52. Rg8+ {[%emt 0:00:08]} Kf3 {[%emt 0:00:08]} 53. Rh8 {[%emt 0:01:12]} Ra1+ {[%emt 0:01:57]} 54. Kh2 {[%emt 0:00:26]} Ra2+ {[%emt 0:00:06]} 55. Kh1 {[%emt 0:00:12]} Rxa5 {[%emt 0:01:02]} 56. Rxh3+ {[%emt 0:00:31]} Kg4 {[%emt 0:00:07]} 57. Rc3 {[%emt 0:00:31]} f4 {[%emt 0:00:27]} 58. Kg1 {[%emt 0:00:23]} Ra2 {[%emt 0:00:25]} 59. Kf1 f3 {[%emt 0:00:11]} 60. Re3 {[%emt 0:01:27]} Kg3 {[%emt 0:00:40]} 61. Rd3 {[%emt 0:02:05]} Ra1+ {[%emt 0:00:16]} 0-1